[Event "Championnat d'Europe Rapide"]
[Date "2024.12.07"]
[White "Suljovic, Sulejman"]
[Black "Cvitan, Ognjen"]
[WhiteElo "2182"]
[BlackElo "2413"]
[Round "2.31"]
[Result "1/2-1/2"]
[TimeControl "900+10"]

1. e4 {[%emt 00:00:33] [%clk 00:14:47]} c5 {[%emt 00:00:06] [%clk 00:15:14]} 2.
Nc3 {[%emt 00:00:01] [%clk 00:14:56]} d6 {[%emt 00:00:05] [%clk 00:15:18]} 3. g3
{[%emt 00:00:01] [%clk 00:15:05]} Nc6 {[%emt 00:00:02] [%clk 00:15:26]} 4. Bg2
{[%clk 00:15:15]} g6 {[%emt 00:00:04] [%clk 00:15:32]} 5. d3 {[%emt 00:00:01]
[%clk 00:15:24]} Bg7 {[%emt 00:00:02] [%clk 00:15:40]} 6. Be3 {[%clk 00:15:32]}
Nf6 {[%emt 00:00:04] [%clk 00:15:46]} 7. h3 {[%emt 00:00:01] [%clk 00:15:41]}
O-O {[%emt 00:00:03] [%clk 00:15:53]} 8. f4 {[%clk 00:15:50]} Rb8 {[%emt
00:00:09] [%clk 00:15:55]} 9. Qd2 {[%emt 00:00:02] [%clk 00:15:58]} Nd4 {[%emt
00:00:42] [%clk 00:15:24]} 10. Nd1 {[%emt 00:00:09] [%clk 00:15:59]} e5 {[%emt
00:00:19] [%clk 00:15:15]} 11. c3 {[%emt 00:00:18] [%clk 00:15:51]} Nc6 {[%emt
00:00:34] [%clk 00:14:51]} 12. Ne2 {[%emt 00:00:02] [%clk 00:15:59]} exf4 {[%emt
00:00:15] [%clk 00:14:46]} 13. Bxf4 {[%emt 00:00:32] [%clk 00:15:37]} Nh5 {[%emt
00:00:29] [%clk 00:14:26]} 14. Bh6 {[%emt 00:00:07] [%clk 00:15:39]} Bxh6 {[%emt
00:00:47] [%clk 00:13:50]} 15. Qxh6 {[%emt 00:00:02] [%clk 00:15:47]} Ne5 {[%clk
00:13:59]} 16. Nf2 {[%emt 00:00:39] [%clk 00:15:18]} c4 {[%emt 00:00:39] [%clk
00:13:31]} 17. d4 {[%emt 00:00:05] [%clk 00:15:23]} Nd3+ {[%emt 00:00:01] [%clk
00:13:40]} 18. Nxd3 {[%emt 00:01:43] [%clk 00:13:50]} cxd3 {[%emt 00:00:01]
[%clk 00:13:49]} 19. Nf4 {[%emt 00:01:38] [%clk 00:12:22]} Nxg3 {[%emt 00:00:01]
[%clk 00:13:58]} 20. Rg1 {[%clk 00:12:31]} Ne2 {[%emt 00:01:11] [%clk 00:12:57]}
21. Nxe2 {[%emt 00:01:19] [%clk 00:11:22]} dxe2 {[%emt 00:00:01] [%clk
00:13:07]} 22. Kxe2 {[%emt 00:00:26] [%clk 00:11:06]} 1/2-1/2

[Site "Europe Echecs"]

[Event "Championnat d'Europe Rapide"]
[Date "2024.12.07"]
[White "Kesidis, Odyseas"]
[Black "Kozul, Zdenko"]
[WhiteElo "2241"]
[BlackElo "2519"]
[Round "2.32"]
[Result "0-1"]
[TimeControl "900+10"]

1. e4 {[%clk 00:15:17]} c5 {[%emt 00:00:02] [%clk 00:15:18]} 2. Nf3 {[%emt
00:00:04] [%clk 00:15:23]} d6 {[%emt 00:00:02] [%clk 00:15:26]} 3. Bb5+ {[%emt
00:00:03] [%clk 00:15:31]} Bd7 {[%emt 00:00:01] [%clk 00:15:34]} 4. Bxd7+ {[%emt
00:00:04] [%clk 00:15:38]} Nxd7 {[%emt 00:00:01] [%clk 00:15:42]} 5. c4 {[%emt
00:00:10] [%clk 00:15:39]} Ngf6 {[%emt 00:00:03] [%clk 00:15:50]} 6. Nc3 {[%emt
00:00:02] [%clk 00:15:46]} Ne5 {[%emt 00:00:03] [%clk 00:15:57]} 7. d3 {[%emt
00:01:01] [%clk 00:14:56]} e6 {[%emt 00:00:02] [%clk 00:16:04]} 8. O-O {[%emt
00:00:05] [%clk 00:15:01]} Be7 {[%emt 00:00:01] [%clk 00:16:13]} 9. Ne1 {[%emt
00:02:10] [%clk 00:13:01]} Nc6 {[%emt 00:01:07] [%clk 00:15:15]} 10. f4 {[%emt
00:00:16] [%clk 00:12:56]} a6 {[%emt 00:00:02] [%clk 00:15:23]} 11. Nc2 {[%emt
00:00:43] [%clk 00:12:23]} O-O {[%emt 00:00:40] [%clk 00:14:52]} 12. Be3 {[%emt
00:00:05] [%clk 00:12:29]} d5 {[%emt 00:00:29] [%clk 00:14:33]} 13. Bf2 {[%emt
00:02:12] [%clk 00:10:27]} d4 {[%emt 00:00:18] [%clk 00:14:26]} 14. Ne2 {[%emt
00:00:11] [%clk 00:10:26]} Ng4 {[%emt 00:01:29] [%clk 00:13:07]} 15. Ng3 {[%emt
00:00:41] [%clk 00:09:56]} Nxf2 {[%emt 00:00:09] [%clk 00:13:07]} 16. Rxf2
{[%emt 00:00:02] [%clk 00:10:03]} f5 {[%emt 00:00:02] [%clk 00:13:16]} 17. exf5
{[%emt 00:00:48] [%clk 00:09:25]} exf5 {[%emt 00:00:02] [%clk 00:13:24]} 18. Qf3
{[%emt 00:00:02] [%clk 00:09:33]} g6 {[%emt 00:00:47] [%clk 00:12:46]} 19. Re2
{[%emt 00:00:09] [%clk 00:09:34]} Bd6 {[%emt 00:00:44] [%clk 00:12:12]} 20. Qd5+
{[%emt 00:01:48] [%clk 00:07:57]} Kg7 {[%emt 00:00:12] [%clk 00:12:09]} 21. Re6
{[%emt 00:00:17] [%clk 00:07:51]} Bxf4 {[%emt 00:00:33] [%clk 00:11:46]} 22.
Qxc5 {[%emt 00:00:24] [%clk 00:07:36]} Re8 {[%emt 00:01:02] [%clk 00:10:54]} 23.
Rxe8 {[%emt 00:00:54] [%clk 00:06:53]} Qxe8 {[%emt 00:00:01] [%clk 00:11:02]}
24. Re1 {[%emt 00:00:03] [%clk 00:07:01]} Qd7 {[%emt 00:00:02] [%clk 00:11:10]}
25. b4 {[%emt 00:02:08] [%clk 00:05:03]} Rc8 {[%emt 00:00:10] [%clk 00:11:09]}
26. Qd5 {[%emt 00:01:41] [%clk 00:03:32]} Qxd5 {[%emt 00:00:44] [%clk 00:10:34]}
27. cxd5 {[%emt 00:00:02] [%clk 00:03:40]} Ne5 {[%emt 00:00:01] [%clk 00:10:43]}
28. Nxd4 {[%emt 00:01:28] [%clk 00:02:22]} Nxd3 {[%emt 00:00:05] [%clk
00:10:48]} 29. Rd1 {[%emt 00:00:47] [%clk 00:01:46]} Be3+ {[%emt 00:02:34] [%clk
00:08:24]} 30. Kf1 {[%emt 00:00:01] [%clk 00:01:55]} Nf2 {[%emt 00:00:09] [%clk
00:08:25]} 31. Ne6+ {[%emt 00:00:43] [%clk 00:01:22]} Kf6 {[%emt 00:00:02] [%clk
00:08:33]} 32. Re1 {[%emt 00:00:07] [%clk 00:01:25]} Bb6 {[%emt 00:02:26] [%clk
00:06:17]} 33. Nc5 {[%emt 00:00:28] [%clk 00:01:08]} Bxc5 {[%emt 00:00:02] [%clk
00:06:25]} 34. Re6+ {[%emt 00:00:20] [%clk 00:00:58]} Kf7 {[%emt 00:00:02] [%clk
00:06:33]} 35. bxc5 {[%emt 00:00:01] [%clk 00:01:06]} Nd3 {[%emt 00:01:02]} 36.
Rb6 {[%clk 00:00:16]} Nxc5 {[%emt 00:00:03] [%clk 00:06:49]} 37. Ne2 {[%emt
00:00:01] [%clk 00:00:25]} Rc7 {[%emt 00:00:50] [%clk 00:06:09]} 38. Nf4 {[%emt
00:00:06] [%clk 00:00:30]} Nd7 {[%emt 00:00:13] [%clk 00:06:06]} 39. Rd6 {[%emt
00:00:23] [%clk 00:00:17]} Nf6 {[%emt 00:00:10] [%clk 00:06:05]} 40. Rb6 {[%emt
00:00:13] [%clk 00:00:15]} Re7 {[%emt 00:02:39] [%clk 00:03:36]} 41. h3 {[%emt
00:00:12] [%clk 00:00:13]} h6 {[%emt 00:00:06] [%clk 00:03:39]} 42. h4 {[%emt
00:00:08] [%clk 00:00:15]} Rd7 {[%emt 00:01:00] [%clk 00:02:49]} 43. Kf2 {[%emt
00:00:10] [%clk 00:00:15]} g5 {[%emt 00:00:06] [%clk 00:02:53]} 44. hxg5 {[%emt
00:00:01] [%clk 00:00:24]} hxg5 {[%clk 00:03:02]} 45. Ne6 {[%emt 00:00:06] [%clk
00:00:28]} Ne4+ {[%emt 00:00:02] [%clk 00:03:10]} 46. Ke3 {[%emt 00:00:07] [%clk
00:00:31]} Rxd5 {[%emt 00:00:09] [%clk 00:03:11]} 47. Nd4 {[%emt 00:00:08] [%clk
00:00:33]} Nd6 {[%emt 00:00:08] [%clk 00:03:14]} 48. a4 {[%emt 00:00:08] [%clk
00:00:35]} Nc4+ {[%emt 00:00:09] [%clk 00:03:15]} 0-1

[Site "Europe Echecs"]

[Event "Championnat d'Europe Rapide"]
[Date "2024.12.07"]
[White "Molina Carretero, Daniel"]
[Black "Livaic, Leon"]
[WhiteElo "2195"]
[BlackElo "2560"]
[Round "2.33"]
[Result "0-1"]
[TimeControl "900+10"]

1. c4 {[%clk 00:15:19]} d6 {[%emt 00:00:03] [%clk 00:15:18]} 2. Nf3 {[%emt
00:00:18] [%clk 00:15:11]} e5 {[%emt 00:00:02] [%clk 00:15:26]} 3. g3 {[%emt
00:00:06] [%clk 00:15:15]} f5 {[%emt 00:00:05] [%clk 00:15:31]} 4. Bg2 {[%emt
00:00:10] [%clk 00:15:15]} Nf6 {[%emt 00:00:03] [%clk 00:15:39]} 5. Nc3 {[%emt
00:00:29] [%clk 00:14:56]} Be7 {[%emt 00:00:02] [%clk 00:15:46]} 6. O-O {[%emt
00:00:05] [%clk 00:15:00]} O-O {[%emt 00:00:03] [%clk 00:15:54]} 7. d4 {[%emt
00:00:09] [%clk 00:15:01]} e4 {[%emt 00:00:23] [%clk 00:15:42]} 8. Ng5 {[%emt
00:00:01] [%clk 00:15:09]} c6 {[%emt 00:01:21] [%clk 00:14:32]} 9. d5 {[%emt
00:00:31] [%clk 00:14:47]} h6 {[%emt 00:00:39] [%clk 00:14:03]} 10. Nh3 {[%emt
00:00:15] [%clk 00:14:42]} Nbd7 {[%emt 00:00:02] [%clk 00:14:11]} 11. f3 {[%emt
00:01:47] [%clk 00:13:05]} Ne5 {[%emt 00:01:21] [%clk 00:12:59]} 12. b3 {[%emt
00:01:04] [%clk 00:12:11]} Qa5 {[%emt 00:01:07] [%clk 00:12:02]} 13. Qd2 {[%emt
00:00:25] [%clk 00:11:55]} Qc5+ {[%emt 00:00:58] [%clk 00:11:15]} 14. Nf2 {[%emt
00:01:24] [%clk 00:10:40]} cxd5 {[%emt 00:00:28] [%clk 00:10:57]} 15. Nxd5
{[%emt 00:02:59] [%clk 00:07:52]} Nxd5 {[%emt 00:00:03] [%clk 00:11:03]} 16.
Qxd5+ {[%emt 00:00:23] [%clk 00:07:38]} Qxd5 {[%emt 00:00:07] [%clk 00:11:07]}
17. cxd5 {[%clk 00:07:47]} exf3 {[%emt 00:00:45] [%clk 00:10:32]} 18. exf3
{[%emt 00:00:09] [%clk 00:07:48]} Bd7 {[%emt 00:00:30] [%clk 00:10:13]} 19. Ba3
{[%emt 00:00:15] [%clk 00:07:43]} Rfe8 {[%emt 00:01:22] [%clk 00:09:00]} 20.
Rac1 {[%emt 00:00:34] [%clk 00:07:19]} Rac8 {[%emt 00:02:56] [%clk 00:06:15]}
21. Rfe1 {[%emt 00:00:41] [%clk 00:06:47]} Kf7 {[%emt 00:00:45] [%clk 00:05:40]}
22. f4 {[%emt 00:00:51] [%clk 00:06:06]} Ng4 {[%emt 00:00:11] [%clk 00:05:40]}
23. Nxg4 {[%emt 00:00:26] [%clk 00:05:50]} fxg4 {[%emt 00:00:02] [%clk
00:05:47]} 24. Rxc8 {[%emt 00:01:20] [%clk 00:04:40]} Rxc8 {[%emt 00:00:08]
[%clk 00:05:49]} 25. Be4 {[%emt 00:00:19] [%clk 00:04:31]} Re8 {[%emt 00:02:03]
[%clk 00:03:56]} 26. Rc1 {[%emt 00:02:56] [%clk 00:01:46]} Bd8 {[%emt 00:01:10]
[%clk 00:02:56]} 27. Bd3 {[%emt 00:00:55] [%clk 00:01:01]} Bb6+ {[%emt 00:00:01]
[%clk 00:03:04]} 28. Kf1 {[%emt 00:00:07] [%clk 00:01:04]} Re3 {[%emt 00:00:45]
[%clk 00:02:29]} 29. Be2 {[%emt 00:00:09] [%clk 00:01:05]} Ke7 {[%emt 00:01:05]
[%clk 00:01:35]} 30. Bb2 {[%emt 00:00:11] [%clk 00:01:04]} g6 {[%emt 00:00:06]
[%clk 00:01:39]} 31. Rd1 {[%emt 00:00:57] [%clk 00:00:18]} Bf5 {[%emt 00:00:59]
[%clk 00:00:49]} 32. Bd4 {[%emt 00:00:13] [%clk 00:00:15]} Bxd4 {[%emt 00:00:08]
[%clk 00:00:52]} 33. Rxd4 {[%clk 00:00:24]} Kd8 {[%emt 00:00:43] [%clk
00:00:19]} 34. Kf2 {[%emt 00:00:03] [%clk 00:00:31]} Re7 {[%emt 00:00:04] [%clk
00:00:25]} 35. Bd3 {[%emt 00:00:15] [%clk 00:00:26]} Rc7 {[%emt 00:00:17] [%clk
00:00:18]} 36. Bxf5 {[%emt 00:00:11] [%clk 00:00:25]} gxf5 {[%clk 00:00:27]} 37.
Rd2 {[%emt 00:00:10] [%clk 00:00:25]} Rc1 {[%emt 00:00:11] [%clk 00:00:26]} 38.
Re2 {[%emt 00:00:19] [%clk 00:00:17]} Kd7 {[%emt 00:00:15] [%clk 00:00:20]} 39.
Re6 {[%emt 00:00:01] [%clk 00:00:26]} Rc2+ {[%emt 00:00:06] [%clk 00:00:24]} 40.
Kg1 {[%emt 00:00:01] [%clk 00:00:35]} Rd2 {[%emt 00:00:08] [%clk 00:00:26]} 41.
Rxh6 {[%emt 00:00:03] [%clk 00:00:42]} Rxd5 {[%emt 00:00:01] [%clk 00:00:35]}
42. h4 {[%emt 00:00:38] [%clk 00:00:13]} gxh3 {[%emt 00:00:03] [%clk 00:00:42]}
43. Kh2 {[%clk 00:00:23]} Rd2+ {[%emt 00:00:17] [%clk 00:00:34]} 44. Kxh3 {[%emt
00:00:01] [%clk 00:00:31]} Rxa2 {[%emt 00:00:02] [%clk 00:00:43]} 45. Rf6 {[%emt
00:00:09] [%clk 00:00:32]} Ra5 {[%emt 00:00:05] [%clk 00:00:48]} 46. Kh4 {[%emt
00:00:03] [%clk 00:00:39]} Rb5 {[%emt 00:00:02] [%clk 00:00:57]} 47. b4 {[%emt
00:00:30] [%clk 00:00:19]} b6 {[%emt 00:00:42] [%clk 00:00:24]} 48. Kg5 {[%emt
00:00:01] [%clk 00:00:28]} a5 {[%clk 00:00:33]} 49. bxa5 {[%emt 00:00:10] [%clk
00:00:28]} bxa5 {[%emt 00:00:01] [%clk 00:00:42]} 50. Rf7+ {[%emt 00:00:17]
[%clk 00:00:22]} Ke6 {[%emt 00:00:30] [%clk 00:00:22]} 51. Ra7 {[%emt 00:00:02]
[%clk 00:00:30]} Rb3 {[%emt 00:00:11] [%clk 00:00:21]} 52. Kh4 {[%emt 00:00:29]
[%clk 00:00:11]} Ra3 {[%emt 00:00:02] [%clk 00:00:28]} 53. Ra6 {[%emt 00:00:03]
[%clk 00:00:19]} Ra1 {[%emt 00:00:13] [%clk 00:00:24]} 54. g4 {[%emt 00:00:17]
[%clk 00:00:12]} Rh1+ {[%emt 00:00:06] [%clk 00:00:28]} 55. Kg3 {[%emt 00:00:05]
[%clk 00:00:18]} Rg1+ {[%clk 00:00:37]} 56. Kf3 {[%emt 00:00:01] [%clk
00:00:26]} fxg4+ {[%emt 00:00:04] [%clk 00:00:43]} 57. Kf2 {[%emt 00:00:03]
[%clk 00:00:34]} Ra1 {[%emt 00:00:02] [%clk 00:00:50]} 58. Kg3 {[%emt 00:00:02]
[%clk 00:00:42]} a4 {[%emt 00:00:19] [%clk 00:00:41]} 59. Kxg4 {[%emt 00:00:05]
[%clk 00:00:47]} a3 {[%emt 00:00:03] [%clk 00:00:48]} 60. f5+ {[%emt 00:00:37]
[%clk 00:00:20]} Ke5 {[%emt 00:00:05] [%clk 00:00:53]} 61. f6 {[%emt 00:00:05]
[%clk 00:00:25]} 0-1

[Site "Europe Echecs"]

[Event "Championnat d'Europe Rapide"]
[Date "2024.12.07"]
[White "Kazakouski, Valery"]
[Black "Nakonechnyi, Oleksii"]
[WhiteElo "2567"]
[BlackElo "2052"]
[Round "2.34"]
[Result "1-0"]
[TimeControl "900+10"]

1. Nf3 {[%emt 00:00:02] [%clk 00:15:17]} Nf6 {[%emt 00:00:02] [%clk 00:15:19]}
2. c4 {[%emt 00:00:03] [%clk 00:15:26]} g6 {[%clk 00:15:27]} 3. g3 {[%emt
00:00:02] [%clk 00:15:34]} Bg7 {[%emt 00:00:02] [%clk 00:15:35]} 4. Bg2 {[%emt
00:00:02] [%clk 00:15:42]} O-O {[%emt 00:00:04] [%clk 00:15:41]} 5. O-O {[%emt
00:00:02] [%clk 00:15:50]} c5 {[%emt 00:00:03] [%clk 00:15:49]} 6. d4 {[%emt
00:00:01] [%clk 00:15:58]} cxd4 {[%emt 00:00:02] [%clk 00:15:56]} 7. Nxd4 {[%emt
00:00:02] [%clk 00:16:06]} Nc6 {[%emt 00:00:05] [%clk 00:16:01]} 8. Nc3 {[%emt
00:00:02] [%clk 00:16:14]} a6 {[%emt 00:00:18] [%clk 00:15:54]} 9. c5 {[%emt
00:00:35] [%clk 00:15:49]} Qc7 {[%emt 00:00:28] [%clk 00:15:36]} 10. Bg5 {[%emt
00:00:35] [%clk 00:15:23]} Nxd4 {[%emt 00:00:27] [%clk 00:15:20]} 11. Qxd4
{[%emt 00:00:05] [%clk 00:15:28]} Re8 {[%emt 00:01:19] [%clk 00:14:11]} 12. Rfd1
{[%emt 00:00:55] [%clk 00:14:42]} h6 {[%emt 00:00:24] [%clk 00:13:57]} 13. Bxf6
{[%emt 00:00:15] [%clk 00:14:37]} exf6 {[%emt 00:00:27] [%clk 00:13:40]} 14. Nd5
{[%emt 00:00:14] [%clk 00:14:34]} Qe5 {[%emt 00:00:09] [%clk 00:13:40]} 15. e3
{[%emt 00:00:40] [%clk 00:14:05]} Rb8 {[%emt 00:00:33] [%clk 00:13:17]} 16. Nb6
{[%emt 00:00:12] [%clk 00:14:02]} f5 {[%emt 00:00:37] [%clk 00:12:51]} 17. Qxe5
{[%emt 00:00:23] [%clk 00:13:49]} Bxe5 {[%emt 00:00:16] [%clk 00:12:45]} 18. Rd2
{[%emt 00:00:03] [%clk 00:13:55]} d6 {[%emt 00:03:01] [%clk 00:09:54]} 19. cxd6
{[%emt 00:02:09] [%clk 00:11:55]} Be6 {[%emt 00:00:06] [%clk 00:09:59]} 20. f4
{[%emt 00:03:08] [%clk 00:08:57]} Bf6 {[%emt 00:00:15] [%clk 00:09:54]} 21. d7
{[%emt 00:00:46] [%clk 00:08:22]} Red8 {[%emt 00:00:09] [%clk 00:09:55]} 22. Bd5
{[%emt 00:00:39] [%clk 00:07:51]} Kf8 {[%emt 00:01:02] [%clk 00:09:04]} 23. Bxe6
{[%emt 00:00:18] [%clk 00:07:44]} fxe6 {[%emt 00:00:02] [%clk 00:09:12]} 24. Rc1
{[%emt 00:00:06] [%clk 00:07:47]} Ke7 {[%emt 00:00:37] [%clk 00:08:46]} 25. Kf2
{[%emt 00:00:16] [%clk 00:07:40]} g5 {[%emt 00:00:20] [%clk 00:08:36]} 26. Rc4
{[%emt 00:00:37] [%clk 00:07:13]} h5 {[%emt 00:01:09] [%clk 00:07:38]} 27. e4
{[%emt 00:00:59] [%clk 00:06:24]} gxf4 {[%emt 00:00:34] [%clk 00:07:15]} 28.
gxf4 {[%emt 00:00:02] [%clk 00:06:31]} fxe4 {[%emt 00:00:18] [%clk 00:07:08]}
29. Rxe4 {[%emt 00:00:07] [%clk 00:06:33]} Kf7 {[%emt 00:00:18] [%clk 00:07:00]}
30. Kf3 {[%emt 00:00:42] [%clk 00:06:01]} Rg8 {[%emt 00:01:35] [%clk 00:05:35]}
31. Nc8 {[%emt 00:00:08] [%clk 00:06:02]} Be7 {[%emt 00:00:52] [%clk 00:04:54]}
32. f5 {[%emt 00:00:11] [%clk 00:06:01]} Rg4 {[%emt 00:00:39] [%clk 00:04:25]}
33. fxe6+ {[%emt 00:00:15] [%clk 00:05:56]} Kf6 {[%clk 00:04:34]} 34. d8=Q
{[%emt 00:00:13] [%clk 00:05:53]} Bxd8 {[%emt 00:00:07] [%clk 00:04:37]} 35.
Rxd8 {[%emt 00:00:03] [%clk 00:06:00]} Rxe4 {[%emt 00:00:02] [%clk 00:04:45]}
36. Kxe4 {[%emt 00:00:02] [%clk 00:06:08]} Kxe6 {[%emt 00:00:01] [%clk
00:04:54]} 37. Rh8 {[%emt 00:00:17] [%clk 00:06:01]} Kf6 {[%emt 00:00:05] [%clk
00:04:59]} 38. Kd5 {[%emt 00:00:22] [%clk 00:05:49]} Kg7 {[%emt 00:00:05] [%clk
00:05:05]} 39. Re8 {[%emt 00:00:02] [%clk 00:05:56]} 1-0

[Site "Europe Echecs"]

[Event "Championnat d'Europe Rapide"]
[Date "2024.12.07"]
[White "Muter, Donny"]
[Black "Alonso Rosell, Alvar"]
[WhiteElo "2206"]
[BlackElo "2532"]
[Round "2.35"]
[Result "0-1"]
[TimeControl "900+10"]

1. b3 {[%clk 00:15:18]} Nf6 {[%emt 00:00:08] [%clk 00:15:13]} 2. Bb2 {[%emt
00:00:01] [%clk 00:15:26]} g6 {[%emt 00:00:02] [%clk 00:15:21]} 3. g4 {[%emt
00:00:02] [%clk 00:15:34]} Bg7 {[%emt 00:00:13] [%clk 00:15:18]} 4. g5 {[%emt
00:00:01] [%clk 00:15:43]} Nh5 {[%emt 00:00:03] [%clk 00:15:26]} 5. Bxg7 {[%emt
00:00:01] [%clk 00:15:52]} Nxg7 {[%emt 00:00:01] [%clk 00:15:34]} 6. Qc1 {[%emt
00:00:01] [%clk 00:16:01]} e5 {[%emt 00:01:06] [%clk 00:14:38]} 7. h4 {[%emt
00:00:32]} d5 {[%clk 00:14:18]} 8. Qb2 {[%emt 00:00:06] [%clk 00:16:13]} d4
{[%emt 00:00:35] [%clk 00:13:53]} 9. Bg2 {[%emt 00:01:12] [%clk 00:15:11]} Nc6
{[%emt 00:00:02] [%clk 00:14:02]} 10. d3 {[%emt 00:00:05] [%clk 00:15:16]} h6
{[%emt 00:00:21] [%clk 00:13:50]} 11. gxh6 {[%emt 00:00:07] [%clk 00:15:19]}
Rxh6 {[%emt 00:00:01] [%clk 00:13:59]} 12. Nf3 {[%emt 00:00:02] [%clk 00:15:28]}
Qe7 {[%emt 00:01:10] [%clk 00:12:58]} 13. Nbd2 {[%emt 00:00:23] [%clk 00:15:14]}
Bd7 {[%emt 00:00:03] [%clk 00:13:06]} 14. O-O-O {[%emt 00:00:19] [%clk
00:15:06]} O-O-O {[%emt 00:00:03] [%clk 00:13:13]} 15. e3 {[%emt 00:01:06] [%clk
00:14:09]} dxe3 {[%emt 00:00:48] [%clk 00:12:35]} 16. fxe3 {[%clk 00:14:18]} Nf5
{[%emt 00:00:20] [%clk 00:12:25]} 17. Rde1 {[%emt 00:00:02] [%clk 00:14:27]}
Nxh4 {[%emt 00:00:44] [%clk 00:11:51]} 18. Nxh4 {[%emt 00:00:02] [%clk
00:14:35]} Rxh4 {[%emt 00:00:02] [%clk 00:11:59]} 19. Qc3 {[%emt 00:03:21] [%clk
00:11:23]} f5 {[%emt 00:04:34] [%clk 00:07:35]} 20. Nc4 {[%emt 00:01:14] [%clk
00:10:20]} Re8 {[%emt 00:01:29] [%clk 00:06:16]} 21. Kb2 {[%emt 00:02:53] [%clk
00:07:37]} g5 {[%emt 00:02:30] [%clk 00:03:56]} 22. a3 {[%emt 00:02:14] [%clk
00:05:32]} e4 {[%emt 00:00:18] [%clk 00:03:48]} 23. dxe4 {[%emt 00:02:46] [%clk
00:02:56]} fxe4 {[%emt 00:00:01] [%clk 00:03:57]} 24. b4 {[%emt 00:00:03] [%clk
00:03:04]} a6 {[%emt 00:00:23] [%clk 00:03:44]} 25. Ref1 {[%emt 00:00:25] [%clk
00:02:49]} Rxh1 {[%emt 00:01:22] [%clk 00:02:32]} 26. Bxh1 {[%emt 00:00:02]
[%clk 00:02:57]} Na7 {[%emt 00:00:45] [%clk 00:01:57]} 27. Rf7 {[%emt 00:01:36]
[%clk 00:01:32]} Qe6 {[%emt 00:00:11] [%clk 00:01:55]} 28. Rf6 {[%emt 00:01:13]
[%clk 00:00:30]} Qh3 {[%emt 00:00:53] [%clk 00:01:12]} 29. Nd6+ {[%emt 00:00:02]
[%clk 00:00:38]} Kb8 {[%clk 00:01:21]} 30. Nxe8 {[%emt 00:00:02] [%clk
00:00:46]} Nb5 {[%emt 00:00:01] [%clk 00:01:30]} 31. Qe5 {[%emt 00:00:07] [%clk
00:00:49]} Qxe3 {[%emt 00:00:08] [%clk 00:01:31]} 32. Rf8 {[%emt 00:00:07] [%clk
00:00:51]} Qxa3+ {[%emt 00:00:06] [%clk 00:01:35]} 33. Kb1 {[%emt 00:00:04]
[%clk 00:00:57]} Nc3+ {[%emt 00:00:02] [%clk 00:01:43]} 34. Qxc3 {[%emt
00:00:02] [%clk 00:01:06]} Qxc3 {[%emt 00:00:02] [%clk 00:01:52]} 35. Nf6+
{[%emt 00:01:02] [%clk 00:00:13]} Ka7 {[%emt 00:00:05] [%clk 00:01:57]} 36. Bxe4
{[%emt 00:00:02] [%clk 00:00:21]} Qxb4+ {[%emt 00:00:02] [%clk 00:02:05]} 0-1

[Site "Europe Echecs"]